[Event "Titled Tuesday Blitz January 10 Early 2023"]
[White "Fernandez Siles, Luis"]
[Black "Reprintsev, Alexander"]
[WhiteFideId "2209420"]
[BlackFideId "14100541"]
[WhiteElo "2218"]
[BlackElo "2253"]
[Result "0-1"]
[Round "09"]
[TimeControl "180+2"]
[Date "2023.01.10"]
[WhiteClock "0:00:25"]
[BlackClock "0:00:30"]

1. e4 {[%clk 0:03:00]}  d5 {[%clk 0:02:59]} 2. exd5 {[%clk 0:02:59]}  Qxd5 {[%clk 0:02:59]} 3. Nc3 {[%clk 0:02:58]}  Qa5 {[%clk 0:02:58]} 4. g3 {[%clk 0:02:57]}  Nc6 {[%clk 0:02:57]} 5. Bg2 {[%clk 0:02:56]}  Nf6 {[%clk 0:02:57]} 6. Nge2 {[%clk 0:02:55]}  e5 {[%clk 0:02:50]} 7. O-O {[%clk 0:02:51]}  Bf5 {[%clk 0:02:49]} 8. d4 {[%clk 0:02:48]}  O-O-O {[%clk 0:02:47]} 9. d5 {[%clk 0:02:24]}  Nb4 {[%clk 0:02:45]} 10. Bd2 {[%clk 0:02:19]}  Bxc2 {[%clk 0:02:39]} 11. Qc1 {[%clk 0:02:15]}  Bg6 {[%clk 0:02:36]} 12. a3 {[%clk 0:02:08]}  Nd3 {[%clk 0:02:36]} 13. Qd1 {[%clk 0:02:07]}  Qa6 {[%clk 0:02:26]} 14. Qb3 {[%clk 0:01:58]}  Nc5 {[%clk 0:02:24]} 15. Qb4 {[%clk 0:01:54]}  Bd3 {[%clk 0:02:17]} 16. Rfc1 {[%clk 0:01:45]}  Bxe2 {[%clk 0:02:12]} 17. Nxe2 {[%clk 0:01:44]}  Qxe2 {[%clk 0:02:12]} 18. d6 {[%clk 0:01:40]}  Bxd6 {[%clk 0:01:27]} 19. Rxc5 {[%clk 0:01:36]}  b6 {[%clk 0:01:18]} 20. Rac1 {[%clk 0:01:09]}  Bxc5 {[%clk 0:01:15]} 21. Rxc5 {[%clk 0:01:08]}  Qxd2 {[%clk 0:01:14]} 22. Qb5 {[%clk 0:01:00]}  Qd1+ {[%clk 0:01:10]} 23. Bf1 {[%clk 0:00:58]}  bxc5 {[%clk 0:01:04]} 24. Qc6 {[%clk 0:00:36]}  Rhe8 {[%clk 0:00:45]} 25. h3 {[%clk 0:00:31]}  Rd6 {[%clk 0:00:44]} 26. Qa8+ {[%clk 0:00:28]}  Kd7 {[%clk 0:00:44]} 27. Qxa7 {[%clk 0:00:28]}  Ne4 {[%clk 0:00:38]} 28. Kg2 {[%clk 0:00:25]}  Qd2 {[%clk 0:00:30]} 0-1


[Site "https://www.chess.com"]

[Event "Titled Tuesday Blitz January 10 Early 2023"]
[White "Begunov, Konstantin"]
[Black "Marcziter, Dmitrii"]
[WhiteFideId "4118510"]
[BlackFideId "13900765"]
[WhiteElo "2325"]
[BlackElo "2234"]
[Result "1-0"]
[Round "09"]
[TimeControl "180+2"]
[Date "2023.01.10"]
[WhiteClock "0:00:10"]
[BlackClock "0:00:08"]

1. d4 {[%clk 0:03:00]}  d5 {[%clk 0:02:56]} 2. c4 {[%clk 0:03:00]}  e6 {[%clk 0:02:56]} 3. Nc3 {[%clk 0:03:01]}  c5 {[%clk 0:02:56]} 4. cxd5 {[%clk 0:03:01]}  exd5 {[%clk 0:02:56]} 5. Nf3 {[%clk 0:03:01]}  Nc6 {[%clk 0:02:57]} 6. g3 {[%clk 0:03:01]}  Nf6 {[%clk 0:02:57]} 7. Bg2 {[%clk 0:03:02]}  Be7 {[%clk 0:02:58]} 8. O-O {[%clk 0:03:02]}  O-O {[%clk 0:02:59]} 9. Bg5 {[%clk 0:03:00]}  cxd4 {[%clk 0:02:59]} 10. Nxd4 {[%clk 0:03:00]}  h6 {[%clk 0:03:00]} 11. Be3 {[%clk 0:03:00]}  Re8 {[%clk 0:03:00]} 12. Rc1 {[%clk 0:02:58]}  Bf8 {[%clk 0:03:00]} 13. Nxc6 {[%clk 0:02:56]}  bxc6 {[%clk 0:03:00]} 14. Na4 {[%clk 0:02:57]}  Qa5 {[%clk 0:02:59]} 15. Bc5 {[%clk 0:02:46]}  Ba6 {[%clk 0:02:46]} 16. Bf3 {[%clk 0:02:16]}  Ne4 {[%clk 0:02:37]} 17. Bxf8 {[%clk 0:02:15]}  Kxf8 {[%clk 0:02:37]} 18. Rxc6 {[%clk 0:01:14]}  Bb5 {[%clk 0:02:21]} 19. Qxd5 {[%clk 0:01:06]}  Qxa4 {[%clk 0:02:05]} 20. Rc7 {[%clk 0:01:02]}  Ng5 {[%clk 0:01:48]} 21. Bh5 {[%clk 0:00:54]}  Re7 {[%clk 0:01:13]} 22. Qxa8+ {[%clk 0:00:46]}  Be8 {[%clk 0:01:11]} 23. Rxe7 {[%clk 0:00:42]}  Kxe7 {[%clk 0:01:11]} 24. Qb7+ {[%clk 0:00:32]}  Kf8 {[%clk 0:01:11]} 25. Qb3 {[%clk 0:00:27]}  Qe4 {[%clk 0:01:01]} 26. Bf3 {[%clk 0:00:27]}  Nxf3+ {[%clk 0:00:57]} 27. Qxf3 {[%clk 0:00:27]}  Qe5 {[%clk 0:00:55]} 28. b3 {[%clk 0:00:26]}  Qe6 {[%clk 0:00:55]} 29. Rd1 {[%clk 0:00:21]}  Bc6 {[%clk 0:00:52]} 30. Qd3 {[%clk 0:00:21]}  Kg8 {[%clk 0:00:47]} 31. f3 {[%clk 0:00:19]}  a6 {[%clk 0:00:42]} 32. Kg2 {[%clk 0:00:19]}  Bb5 {[%clk 0:00:41]} 33. Qd8+ {[%clk 0:00:18]}  Kh7 {[%clk 0:00:41]} 34. e4 {[%clk 0:00:17]}  Qe5 {[%clk 0:00:39]} 35. Qd4 {[%clk 0:00:18]}  Qc7 {[%clk 0:00:38]} 36. Rd2 {[%clk 0:00:18]}  Qc1 {[%clk 0:00:38]} 37. Rf2 {[%clk 0:00:15]}  f6 {[%clk 0:00:35]} 38. e5 {[%clk 0:00:15]}  fxe5 {[%clk 0:00:33]} 39. Qe4+ {[%clk 0:00:15]}  Kh8 {[%clk 0:00:32]} 40. Qxe5 {[%clk 0:00:16]}  Bd3 {[%clk 0:00:28]} 41. Qd4 {[%clk 0:00:16]}  Bg6 {[%clk 0:00:28]} 42. Rd2 {[%clk 0:00:16]}  Kh7 {[%clk 0:00:27]} 43. Qe3 {[%clk 0:00:16]}  Qb1 {[%clk 0:00:24]} 44. Re2 {[%clk 0:00:16]}  Qd1 {[%clk 0:00:23]} 45. h4 {[%clk 0:00:16]}  h5 {[%clk 0:00:22]} 46. Rd2 {[%clk 0:00:16]}  Qb1 {[%clk 0:00:21]} 47. Qg5 {[%clk 0:00:16]}  Qc1 {[%clk 0:00:19]} 48. Rd6 {[%clk 0:00:14]}  Qc2+ {[%clk 0:00:16]} 49. Kh3 {[%clk 0:00:13]}  Bf5+ {[%clk 0:00:14]} 50. g4 {[%clk 0:00:10]}  hxg4+ {[%clk 0:00:13]} 51. Kg3 {[%clk 0:00:10]}  gxf3 {[%clk 0:00:10]} 52. Qh5+ {[%clk 0:00:10]}  Kg8 {[%clk 0:00:08]} 53. Rd8# {[%clk 0:00:10]} 1-0


[Site "https://www.chess.com"]

[Event "Titled Tuesday Blitz January 10 Early 2023"]
[White "Aspire_ie"]
[Black "Valle Maytin, Luis Enrique"]
[BlackFideId "3503666"]
[WhiteElo "2307"]
[BlackElo "2241"]
[Result "1-0"]
[Round "09"]
[TimeControl "180+2"]
[Date "2023.01.10"]
[WhiteClock "0:01:41"]
[BlackClock "0:01:50"]

1. e4 {[%clk 0:03:00]}  c6 {[%clk 0:02:53]} 2. c4 {[%clk 0:03:00]}  d5 {[%clk 0:02:54]} 3. cxd5 {[%clk 0:03:01]}  cxd5 {[%clk 0:02:53]} 4. exd5 {[%clk 0:03:01]}  Nf6 {[%clk 0:02:52]} 5. Nc3 {[%clk 0:03:00]}  Nxd5 {[%clk 0:02:52]} 6. Nf3 {[%clk 0:02:56]}  Nc6 {[%clk 0:02:49]} 7. Bc4 {[%clk 0:02:55]}  Nxc3 {[%clk 0:02:48]} 8. bxc3 {[%clk 0:02:56]}  Qc7 {[%clk 0:02:27]} 9. O-O {[%clk 0:02:48]}  Bg4 {[%clk 0:02:26]} 10. Bxf7+ {[%clk 0:02:42]}  Kxf7 {[%clk 0:02:20]} 11. Ng5+ {[%clk 0:02:42]}  Ke8 {[%clk 0:02:20]} 12. Qxg4 {[%clk 0:02:42]}  h6 {[%clk 0:02:17]} 13. Qh5+ {[%clk 0:02:11]}  Kd7 {[%clk 0:02:17]} 14. d4 {[%clk 0:02:05]}  g6 {[%clk 0:02:03]} 15. Qg4+ {[%clk 0:01:51]}  Ke8 {[%clk 0:02:02]} 16. Ne6 {[%clk 0:01:51]}  Qd6 {[%clk 0:01:57]} 17. Bf4 {[%clk 0:01:42]}  Qd5 {[%clk 0:01:50]} 18. Nc7+ {[%clk 0:01:41]} 1-0


[Site "https://www.chess.com"]

[Event "Titled Tuesday Blitz January 10 Early 2023"]
[White "Sreyas Payyappat"]
[Black "Real_taiatai"]
[WhiteFideId "46674969"]
[WhiteElo "2076"]
[BlackElo "2318"]
[Result "1-0"]
[Round "09"]
[TimeControl "180+2"]
[Date "2023.01.10"]
[WhiteClock "0:01:12"]
[BlackClock "0:00:12"]

1. e4 {[%clk 0:02:58]}  c5 {[%clk 0:02:57]} 2. Nf3 {[%clk 0:02:58]}  g6 {[%clk 0:02:57]} 3. d4 {[%clk 0:02:58]}  cxd4 {[%clk 0:02:58]} 4. Nxd4 {[%clk 0:02:57]}  Bg7 {[%clk 0:02:59]} 5. Be3 {[%clk 0:02:58]}  Nc6 {[%clk 0:03:00]} 6. Nc3 {[%clk 0:02:54]}  Nf6 {[%clk 0:03:00]} 7. f4 {[%clk 0:02:52]}  d6 {[%clk 0:02:51]} 8. Be2 {[%clk 0:02:50]}  O-O {[%clk 0:02:51]} 9. O-O {[%clk 0:02:44]}  Bd7 {[%clk 0:02:46]} 10. Qd2 {[%clk 0:02:41]}  a6 {[%clk 0:02:38]} 11. Rad1 {[%clk 0:02:34]}  Ng4 {[%clk 0:02:25]} 12. Bxg4 {[%clk 0:02:18]}  Bxg4 {[%clk 0:02:17]} 13. Rde1 {[%clk 0:02:18]}  Rc8 {[%clk 0:02:07]} 14. h3 {[%clk 0:02:16]}  Bd7 {[%clk 0:02:06]} 15. f5 {[%clk 0:02:13]}  b5 {[%clk 0:02:04]} 16. Nd5 {[%clk 0:02:12]}  Nxd4 {[%clk 0:01:14]} 17. Bxd4 {[%clk 0:02:12]}  Bxd4+ {[%clk 0:01:15]} 18. Qxd4 {[%clk 0:02:10]}  Rxc2 {[%clk 0:01:15]} 19. f6 {[%clk 0:02:02]}  e6 {[%clk 0:01:09]} 20. Qe3 {[%clk 0:01:51]}  Kh8 {[%clk 0:00:55]} 21. Ne7 {[%clk 0:01:49]}  Rg8 {[%clk 0:00:35]} 22. Qh6 {[%clk 0:01:47]}  Qf8 {[%clk 0:00:24]} 23. Nxg8 {[%clk 0:01:44]}  Kxg8 {[%clk 0:00:22]} 24. Qxf8+ {[%clk 0:01:43]}  Kxf8 {[%clk 0:00:23]} 25. Rd1 {[%clk 0:01:43]}  Rc6 {[%clk 0:00:17]} 26. Rd2 {[%clk 0:01:41]}  Ke8 {[%clk 0:00:16]} 27. Rfd1 {[%clk 0:01:36]}  d5 {[%clk 0:00:15]} 28. exd5 {[%clk 0:01:35]}  exd5 {[%clk 0:00:16]} 29. Rxd5 {[%clk 0:01:35]}  Rc7 {[%clk 0:00:16]} 30. Rd6 {[%clk 0:01:33]}  Kd8 {[%clk 0:00:14]} 31. Rxa6 {[%clk 0:01:31]}  Kc8 {[%clk 0:00:14]} 32. Ra8+ {[%clk 0:01:29]}  Kb7 {[%clk 0:00:14]} 33. Rh8 {[%clk 0:01:29]}  h5 {[%clk 0:00:14]} 34. Rf8 {[%clk 0:01:22]}  Be6 {[%clk 0:00:14]} 35. Re8 {[%clk 0:01:19]}  Rc2 {[%clk 0:00:15]} 36. Rxe6 {[%clk 0:01:19]}  fxe6 {[%clk 0:00:15]} 37. Rd7+ {[%clk 0:01:14]}  Kb6 {[%clk 0:00:10]} 38. Rd6+ {[%clk 0:01:13]}  Ka5 {[%clk 0:00:10]} 39. f7 {[%clk 0:01:10]}  Rc8 {[%clk 0:00:10]} 40. Rxe6 {[%clk 0:01:11]}  Rf8 {[%clk 0:00:11]} 41. Rf6 {[%clk 0:01:10]}  Kb4 {[%clk 0:00:12]} 42. Kf2 {[%clk 0:01:10]}  Kc4 {[%clk 0:00:12]} 43. Ke3 {[%clk 0:01:10]}  Kd5 {[%clk 0:00:13]} 44. Kf4 {[%clk 0:01:10]}  Kd4 {[%clk 0:00:10]} 45. Kg5 {[%clk 0:01:10]}  Kd3 {[%clk 0:00:11]} 46. Kxg6 {[%clk 0:01:11]}  Kc2 {[%clk 0:00:11]} 47. Kg7 {[%clk 0:01:12]}  Ra8 {[%clk 0:00:12]} 48. Rf2+ {[%clk 0:01:12]}  Kc1 {[%clk 0:00:12]} 49. f8=Q {[%clk 0:01:12]} 1-0


[Site "https://www.chess.com"]

[Event "Titled Tuesday Blitz January 10 Early 2023"]
[White "Riverol, Jose"]
[Black "Boder, Jan"]
[WhiteFideId "3000427"]
[BlackFideId "16243226"]
[WhiteElo "2304"]
[BlackElo "2294"]
[Result "1-0"]
[Round "09"]
[TimeControl "180+2"]
[Date "2023.01.10"]
[WhiteClock "0:00:06"]
[BlackClock "0:00:04"]

1. d4 {[%clk 0:03:00]}  Nf6 {[%clk 0:02:57]} 2. c4 {[%clk 0:03:00]}  e6 {[%clk 0:02:56]} 3. Nc3 {[%clk 0:02:59]}  b6 {[%clk 0:02:52]} 4. e4 {[%clk 0:02:58]}  Bb7 {[%clk 0:02:48]} 5. e5 {[%clk 0:02:58]}  Ne4 {[%clk 0:02:48]} 6. Nf3 {[%clk 0:02:39]}  Bb4 {[%clk 0:02:44]} 7. Qc2 {[%clk 0:02:35]}  Bxc3+ {[%clk 0:02:43]} 8. bxc3 {[%clk 0:02:34]}  f5 {[%clk 0:02:42]} 9. Ba3 {[%clk 0:02:21]}  d6 {[%clk 0:02:33]} 10. Bd3 {[%clk 0:02:17]}  O-O {[%clk 0:02:33]} 11. O-O {[%clk 0:02:12]}  Nd7 {[%clk 0:02:25]} 12. exd6 {[%clk 0:02:09]}  cxd6 {[%clk 0:02:24]} 13. Nd2 {[%clk 0:02:08]}  Ndf6 {[%clk 0:02:22]} 14. f3 {[%clk 0:02:04]}  Nxd2 {[%clk 0:02:19]} 15. Qxd2 {[%clk 0:02:04]}  Re8 {[%clk 0:02:17]} 16. Rfe1 {[%clk 0:01:55]}  Qd7 {[%clk 0:02:17]} 17. Qf4 {[%clk 0:01:44]}  Rad8 {[%clk 0:02:11]} 18. Re2 {[%clk 0:01:39]}  Ba6 {[%clk 0:01:35]} 19. Rae1 {[%clk 0:01:16]}  d5 {[%clk 0:01:32]} 20. h4 {[%clk 0:00:21]}  Bxc4 {[%clk 0:01:30]} 21. Bxc4 {[%clk 0:00:20]}  dxc4 {[%clk 0:01:30]} 22. Re5 {[%clk 0:00:16]}  Nd5 {[%clk 0:01:30]} 23. Qd2 {[%clk 0:00:14]}  b5 {[%clk 0:01:30]} 24. Bc5 {[%clk 0:00:13]}  a6 {[%clk 0:01:28]} 25. g4 {[%clk 0:00:11]}  fxg4 {[%clk 0:01:21]} 26. fxg4 {[%clk 0:00:12]}  Rc8 {[%clk 0:01:13]} 27. Qg5 {[%clk 0:00:09]}  Nxc3 {[%clk 0:01:01]} 28. h5 {[%clk 0:00:09]}  h6 {[%clk 0:00:56]} 29. Qg6 {[%clk 0:00:08]}  Qf7 {[%clk 0:00:57]} 30. Rxe6 {[%clk 0:00:06]}  Qxg6 {[%clk 0:00:57]} 31. hxg6 {[%clk 0:00:06]}  Rxe6 {[%clk 0:00:54]} 32. Rxe6 {[%clk 0:00:07]}  Nxa2 {[%clk 0:00:52]} 33. d5 {[%clk 0:00:07]}  c3 {[%clk 0:00:52]} 34. d6 {[%clk 0:00:05]}  c2 {[%clk 0:00:51]} 35. Be3 {[%clk 0:00:05]}  Rd8 {[%clk 0:00:09]} 36. d7 {[%clk 0:00:05]}  Kf8 {[%clk 0:00:09]} 37. Bc5+ {[%clk 0:00:04]}  Kg8 {[%clk 0:00:03]} 38. Re8+ {[%clk 0:00:05]}  Rxe8 {[%clk 0:00:04]} 39. dxe8=Q# {[%clk 0:00:06]} 1-0


[Site "https://www.chess.com"]

[Event "Titled Tuesday Blitz January 10 Early 2023"]
[White "Rosh Jain"]
[Black "Gonzalez, Francisco Silva"]
[WhiteFideId "25789465"]
[BlackFideId "1512285"]
[WhiteElo "2248"]
[BlackElo "2021"]
[Result "0-1"]
[Round "09"]
[TimeControl "180+2"]
[Date "2023.01.10"]
[WhiteClock "0:00:01"]
[BlackClock "0:01:36"]

1. e4 {[%clk 0:02:55]}  e5 {[%clk 0:02:59]} 2. Nf3 {[%clk 0:02:52]}  Nc6 {[%clk 0:02:59]} 3. Bb5 {[%clk 0:02:52]}  a6 {[%clk 0:02:58]} 4. Ba4 {[%clk 0:02:50]}  Nf6 {[%clk 0:02:57]} 5. O-O {[%clk 0:02:48]}  b5 {[%clk 0:02:55]} 6. Bb3 {[%clk 0:02:47]}  Bc5 {[%clk 0:02:56]} 7. Re1 {[%clk 0:02:46]}  d6 {[%clk 0:02:56]} 8. c3 {[%clk 0:02:42]}  Bg4 {[%clk 0:02:55]} 9. h3 {[%clk 0:02:42]}  Bd7 {[%clk 0:02:55]} 10. d4 {[%clk 0:02:42]}  Bb6 {[%clk 0:02:55]} 11. a4 {[%clk 0:02:31]}  O-O {[%clk 0:02:52]} 12. Na3 {[%clk 0:02:30]}  exd4 {[%clk 0:02:49]} 13. cxd4 {[%clk 0:02:27]}  Na5 {[%clk 0:02:49]} 14. Bc2 {[%clk 0:02:24]}  b4 {[%clk 0:02:45]} 15. Nb1 {[%clk 0:02:24]}  Re8 {[%clk 0:02:43]} 16. Nbd2 {[%clk 0:02:22]}  c5 {[%clk 0:02:41]} 17. d5 {[%clk 0:02:19]}  c4 {[%clk 0:02:40]} 18. Nf1 {[%clk 0:02:13]}  h6 {[%clk 0:02:37]} 19. Ng3 {[%clk 0:02:13]}  Bc5 {[%clk 0:02:33]} 20. e5 {[%clk 0:02:08]}  dxe5 {[%clk 0:02:33]} 21. Nxe5 {[%clk 0:02:09]}  b3 {[%clk 0:02:25]} 22. Bb1 {[%clk 0:02:07]}  Qb6 {[%clk 0:02:24]} 23. Qf3 {[%clk 0:01:42]}  Bd4 {[%clk 0:02:13]} 24. Qf4 {[%clk 0:01:29]}  g5 {[%clk 0:02:01]} 25. Qf3 {[%clk 0:00:58]}  Rxe5 {[%clk 0:02:01]} 26. Rxe5 {[%clk 0:00:56]}  Bxe5 {[%clk 0:02:01]} 27. Be3 {[%clk 0:00:54]}  Qd6 {[%clk 0:02:00]} 28. Ne4 {[%clk 0:00:23]}  Nxe4 {[%clk 0:02:00]} 29. Qxe4 {[%clk 0:00:23]}  f5 {[%clk 0:02:00]} 30. Qf3 {[%clk 0:00:23]}  Bxb2 {[%clk 0:01:51]} 31. Bxf5 {[%clk 0:00:20]}  Rf8 {[%clk 0:01:47]} 32. Bh7+ {[%clk 0:00:15]}  Kxh7 {[%clk 0:01:46]} 33. Qe4+ {[%clk 0:00:09]}  Bf5 {[%clk 0:01:44]} 34. Qe6 {[%clk 0:00:05]}  Bxe6 {[%clk 0:01:43]} 35. dxe6 {[%clk 0:00:06]}  Qh2+ {[%clk 0:01:43]} 36. Kxh2 {[%clk 0:00:05]}  Be5+ {[%clk 0:01:43]} 37. g3 {[%clk 0:00:03]}  Bxa1 {[%clk 0:01:43]} 38. e7 {[%clk 0:00:02]}  Re8 {[%clk 0:01:42]} 39. Bc5 {[%clk 0:00:02]}  c3 {[%clk 0:01:40]} 40. f4 {[%clk 0:00:02]}  b2 {[%clk 0:01:39]} 41. f5 {[%clk 0:00:02]}  Kg7 {[%clk 0:01:39]} 42. f6+ {[%clk 0:00:03]}  Kf7 {[%clk 0:01:39]} 43. h4 {[%clk 0:00:01]}  g4 {[%clk 0:01:38]} 44. h5 {[%clk 0:00:01]}  b1=N {[%clk 0:01:36]} 0-1


[Site "https://www.chess.com"]

[Event "Titled Tuesday Blitz January 10 Early 2023"]
[White "Donskov, Anatoly"]
[Black "ritanovikova"]
[WhiteFideId "24143413"]
[WhiteElo "2279"]
[BlackElo "2112"]
[Result "0-1"]
[Round "09"]
[TimeControl "180+2"]
[Date "2023.01.10"]
[WhiteClock "0:00:01"]
[BlackClock "0:00:24"]

1. e4 {[%clk 0:02:50]}  d5 {[%clk 0:02:59]} 2. exd5 {[%clk 0:02:50]}  Qxd5 {[%clk 0:03:00]} 3. Nc3 {[%clk 0:02:50]}  Qd6 {[%clk 0:03:01]} 4. g3 {[%clk 0:02:50]}  Nf6 {[%clk 0:02:58]} 5. Bg2 {[%clk 0:02:50]}  Nc6 {[%clk 0:02:58]} 6. h3 {[%clk 0:02:49]}  a6 {[%clk 0:02:58]} 7. Nf3 {[%clk 0:02:49]}  e5 {[%clk 0:02:56]} 8. d3 {[%clk 0:02:49]}  Bf5 {[%clk 0:02:54]} 9. O-O {[%clk 0:02:49]}  O-O-O {[%clk 0:02:54]} 10. Qe2 {[%clk 0:02:30]}  h5 {[%clk 0:02:45]} 11. Bg5 {[%clk 0:02:14]}  Be7 {[%clk 0:02:40]} 12. Rfe1 {[%clk 0:02:10]}  Qd7 {[%clk 0:02:09]} 13. h4 {[%clk 0:01:28]}  Bd6 {[%clk 0:02:01]} 14. Ne4 {[%clk 0:01:10]}  Nxe4 {[%clk 0:01:58]} 15. dxe4 {[%clk 0:01:10]}  f6 {[%clk 0:01:35]} 16. exf5 {[%clk 0:01:06]}  fxg5 {[%clk 0:01:35]} 17. Nxg5 {[%clk 0:01:07]}  Kb8 {[%clk 0:01:21]} 18. Qe4 {[%clk 0:01:02]}  Rdf8 {[%clk 0:01:13]} 19. Ne6 {[%clk 0:00:56]}  Rf6 {[%clk 0:01:11]} 20. c4 {[%clk 0:00:50]}  Bb4 {[%clk 0:01:04]} 21. Red1 {[%clk 0:00:43]}  Qe7 {[%clk 0:01:00]} 22. a3 {[%clk 0:00:40]}  g6 {[%clk 0:00:55]} 23. axb4 {[%clk 0:00:12]}  gxf5 {[%clk 0:00:55]} 24. Qe3 {[%clk 0:00:07]}  Rxe6 {[%clk 0:00:49]} 25. b5 {[%clk 0:00:03]}  Nd4 {[%clk 0:00:45]} 26. bxa6 {[%clk 0:00:02]}  Nc2 {[%clk 0:00:41]} 27. a7+ {[%clk 0:00:02]}  Ka8 {[%clk 0:00:39]} 28. Qb3 {[%clk 0:00:02]}  Nb4 {[%clk 0:00:36]} 29. Ra4 {[%clk 0:00:02]}  c5 {[%clk 0:00:35]} 30. Ra5 {[%clk 0:00:02]}  Rc8 {[%clk 0:00:32]} 31. Rb5 {[%clk 0:00:03]}  Rc7 {[%clk 0:00:29]} 32. Bd5 {[%clk 0:00:02]}  Rd6 {[%clk 0:00:28]} 33. Qf3 {[%clk 0:00:01]}  Nxd5 {[%clk 0:00:26]} 34. cxd5 {[%clk 0:00:01]}  Qd7 {[%clk 0:00:24]} 0-1


[Site "https://www.chess.com"]

[Event "Titled Tuesday Blitz January 10 Early 2023"]
[White "Papayan, Oleg"]
[Black "Schut, Han"]
[WhiteFideId "4193911"]
[BlackFideId "1005561"]
[WhiteElo "2253"]
[BlackElo "2101"]
[Result "1-0"]
[Round "09"]
[TimeControl "180+2"]
[Date "2023.01.10"]
[WhiteClock "0:00:04"]
[BlackClock "0:00:14"]

1. e4 {[%clk 0:02:54]}  c5 {[%clk 0:02:59]} 2. Nf3 {[%clk 0:02:53]}  d6 {[%clk 0:02:59]} 3. d4 {[%clk 0:02:53]}  cxd4 {[%clk 0:03:00]} 4. Qxd4 {[%clk 0:02:54]}  Nc6 {[%clk 0:02:59]} 5. Bb5 {[%clk 0:02:52]}  Bd7 {[%clk 0:02:59]} 6. Bxc6 {[%clk 0:02:52]}  Bxc6 {[%clk 0:03:00]} 7. Nc3 {[%clk 0:02:52]}  Nf6 {[%clk 0:03:00]} 8. Bg5 {[%clk 0:02:53]}  e6 {[%clk 0:03:01]} 9. O-O-O {[%clk 0:02:53]}  Be7 {[%clk 0:03:01]} 10. Rhe1 {[%clk 0:02:54]}  Rc8 {[%clk 0:02:55]} 11. Qxa7 {[%clk 0:02:28]}  b5 {[%clk 0:02:47]} 12. e5 {[%clk 0:02:17]}  b4 {[%clk 0:02:37]} 13. exf6 {[%clk 0:02:06]}  gxf6 {[%clk 0:02:36]} 14. Bd2 {[%clk 0:01:39]}  bxc3 {[%clk 0:02:35]} 15. Bxc3 {[%clk 0:01:40]}  Ra8 {[%clk 0:02:20]} 16. Qe3 {[%clk 0:01:40]}  Rxa2 {[%clk 0:02:18]} 17. Nd4 {[%clk 0:01:23]}  Bd5 {[%clk 0:02:07]} 18. Nf5 {[%clk 0:00:54]}  Ra1+ {[%clk 0:02:06]} 19. Kd2 {[%clk 0:00:55]}  Rxd1+ {[%clk 0:02:05]} 20. Kxd1 {[%clk 0:00:56]}  exf5 {[%clk 0:02:01]} 21. Bxf6 {[%clk 0:00:52]}  Be6 {[%clk 0:02:01]} 22. Bxh8 {[%clk 0:00:48]}  Qa5 {[%clk 0:01:42]} 23. Bc3 {[%clk 0:00:45]}  Qa1+ {[%clk 0:01:30]} 24. Qc1 {[%clk 0:00:42]}  Qa8 {[%clk 0:01:20]} 25. f3 {[%clk 0:00:40]}  Kd7 {[%clk 0:01:09]} 26. Qf4 {[%clk 0:00:33]}  h6 {[%clk 0:00:55]} 27. Qxh6 {[%clk 0:00:27]}  Qd5+ {[%clk 0:00:42]} 28. Qd2 {[%clk 0:00:27]}  Qa2 {[%clk 0:00:36]} 29. f4 {[%clk 0:00:23]}  Bh4 {[%clk 0:00:32]} 30. g3 {[%clk 0:00:23]}  Bd8 {[%clk 0:00:33]} 31. h4 {[%clk 0:00:23]}  Bb6 {[%clk 0:00:27]} 32. Bd4 {[%clk 0:00:20]}  Qb1+ {[%clk 0:00:22]} 33. Ke2 {[%clk 0:00:18]}  Bc4+ {[%clk 0:00:22]} 34. Ke3 {[%clk 0:00:11]}  Qxb2 {[%clk 0:00:20]} 35. Bxb6 {[%clk 0:00:08]}  Qxb6+ {[%clk 0:00:20]} 36. Qd4 {[%clk 0:00:08]}  Qc6 {[%clk 0:00:19]} 37. Rd1 {[%clk 0:00:06]}  Be6 {[%clk 0:00:18]} 38. Rd2 {[%clk 0:00:04]}  Ke7 {[%clk 0:00:17]} 39. h5 {[%clk 0:00:05]}  d5 {[%clk 0:00:16]} 40. h6 {[%clk 0:00:04]}  Qc8 {[%clk 0:00:17]} 41. h7 {[%clk 0:00:04]}  f6 {[%clk 0:00:17]} 42. c4 {[%clk 0:00:03]}  Qh8 {[%clk 0:00:15]} 43. Qa7+ {[%clk 0:00:02]}  Kd6 {[%clk 0:00:14]} 44. c5+ {[%clk 0:00:02]}  Kc6 {[%clk 0:00:13]} 45. Rb2 {[%clk 0:00:03]}  d4+ {[%clk 0:00:13]} 46. Kxd4 {[%clk 0:00:03]}  Qd8+ {[%clk 0:00:12]} 47. Ke3 {[%clk 0:00:04]}  Qd5 {[%clk 0:00:12]} 48. Qb6+ {[%clk 0:00:04]}  Kd7 {[%clk 0:00:12]} 49. Rd2 {[%clk 0:00:04]}  Ke8 {[%clk 0:00:13]} 50. Rxd5 {[%clk 0:00:04]}  Bxd5 {[%clk 0:00:14]} 51. h8=Q+ {[%clk 0:00:04]} 1-0


[Site "https://www.chess.com"]

[Event "Titled Tuesday Blitz January 10 Early 2023"]
[White "Skurikhin, Dmitrij"]
[Black "AidenRchess"]
[WhiteFideId "4161297"]
[WhiteElo "2297"]
[BlackElo "2385"]
[Result "1/2-1/2"]
[Round "09"]
[TimeControl "180+2"]
[Date "2023.01.10"]
[WhiteClock "0:02:35"]
[BlackClock "0:02:36"]

1. d4 {[%clk 0:02:58]}  Nf6 {[%clk 0:02:59]} 2. Nf3 {[%clk 0:02:58]}  g6 {[%clk 0:02:59]} 3. c4 {[%clk 0:02:59]}  Bg7 {[%clk 0:02:58]} 4. Nc3 {[%clk 0:03:00]}  d5 {[%clk 0:02:58]} 5. cxd5 {[%clk 0:03:00]}  Nxd5 {[%clk 0:02:59]} 6. e4 {[%clk 0:03:00]}  Nxc3 {[%clk 0:03:00]} 7. bxc3 {[%clk 0:03:01]}  c5 {[%clk 0:03:00]} 8. Rb1 {[%clk 0:03:01]}  O-O {[%clk 0:03:00]} 9. Be2 {[%clk 0:03:01]}  cxd4 {[%clk 0:03:00]} 10. cxd4 {[%clk 0:03:01]}  Qa5+ {[%clk 0:03:00]} 11. Bd2 {[%clk 0:03:01]}  Qxa2 {[%clk 0:03:00]} 12. O-O {[%clk 0:03:01]}  Bg4 {[%clk 0:03:00]} 13. Bg5 {[%clk 0:03:00]}  h6 {[%clk 0:02:58]} 14. Be3 {[%clk 0:02:59]}  Nc6 {[%clk 0:02:54]} 15. d5 {[%clk 0:02:58]}  Ne5 {[%clk 0:02:53]} 16. Rxb7 {[%clk 0:02:50]}  a5 {[%clk 0:02:50]} 17. Rxe7 {[%clk 0:02:48]}  a4 {[%clk 0:02:46]} 18. Bd4 {[%clk 0:02:36]}  Nxf3+ {[%clk 0:02:42]} 19. Bxf3 {[%clk 0:02:34]}  Bxf3 {[%clk 0:02:41]} 20. gxf3 {[%clk 0:02:35]}  Bxd4 {[%clk 0:02:38]} 21. Qxd4 {[%clk 0:02:35]}  a3 {[%clk 0:02:36]} 1/2-1/2


[Site "https://www.chess.com"]

[Event "Titled Tuesday Blitz January 10 Early 2023"]
[White "Ciuffoletti, Paolo"]
[Black "Nugumanov, Bakhtiyar"]
[WhiteFideId "807630"]
[BlackFideId "13701797"]
[WhiteElo "2106"]
[BlackElo "2316"]
[Result "1-0"]
[Round "09"]
[TimeControl "180+2"]
[Date "2023.01.10"]
[WhiteClock "0:01:27"]
[BlackClock "0:01:40"]

1. e4 {[%clk 0:03:00]}  d6 {[%clk 0:02:58]} 2. d4 {[%clk 0:03:00]}  Nf6 {[%clk 0:02:58]} 3. Nc3 {[%clk 0:03:00]}  e5 {[%clk 0:02:57]} 4. dxe5 {[%clk 0:02:59]}  dxe5 {[%clk 0:02:58]} 5. Qxd8+ {[%clk 0:02:59]}  Kxd8 {[%clk 0:02:59]} 6. Bg5 {[%clk 0:02:59]}  Be7 {[%clk 0:02:54]} 7. O-O-O+ {[%clk 0:02:46]}  Ke8 {[%clk 0:02:53]} 8. f4 {[%clk 0:02:37]}  exf4 {[%clk 0:02:49]} 9. e5 {[%clk 0:02:32]}  Ng4 {[%clk 0:02:49]} 10. Bxe7 {[%clk 0:02:25]}  Kxe7 {[%clk 0:02:47]} 11. Nd5+ {[%clk 0:02:22]}  Kd8 {[%clk 0:02:34]} 12. Rd2 {[%clk 0:01:57]}  Bd7 {[%clk 0:02:16]} 13. Nf3 {[%clk 0:01:55]}  c6 {[%clk 0:02:14]} 14. Nxf4 {[%clk 0:01:52]}  Kc7 {[%clk 0:02:10]} 15. Bc4 {[%clk 0:01:41]}  b5 {[%clk 0:01:56]} 16. Bxf7 {[%clk 0:01:37]}  Rf8 {[%clk 0:01:55]} 17. e6 {[%clk 0:01:37]}  Nh6 {[%clk 0:01:39]} 18. exd7 {[%clk 0:01:31]}  Nxd7 {[%clk 0:01:40]} 19. Ne6+ {[%clk 0:01:27]} 1-0


[Site "https://www.chess.com"]